Workbook

Sheet 2016 Land Storage Worksheet
B2: OWNER INFORMATION
B3: Name | J3: Email
B4: Address | J4: Postal Code
B5: Home Ph | G5: Work Ph | J5: Cell Phone
B7: BOAT DESCRIPTION | P7: Dropdown Controls | S7: Engine | T7: Drive | U7: Fuel | V7: Generator | W7: Cyl
B8: Year | G8: Length Overall | J8: (Ft) | K8: Engine Make | M8: =Q9 ->  | P8: Engine | Q8: 9 | R8: 1 | S8: Caterpillar | T8: Inboard | U8: Gas | V8: Fisher-Panda | W8: 4
B9: Make | G9: Beam | J9: (Ft) | K9: Engine Model | Q9: =IF($Q$8=1,S8,IF($Q$8=2,S9,IF($Q$8=3,S10,IF($Q$8=4,S11,IF($Q$8=5,S12,IF($Q$8=6,S13,IF($Q$8=7,S14,IF($Q$8=8,S15,"")))))))) ->  | R9: 2 | S9: Crusader | T9: IPS | U9: Diesel | V9: Kohler | W9: 6
B10: Model | G10: # of Batteries | K10: Drive Type | M10: =Q11 ->  | P10: Drive | Q10: 10 | R10: 3 | S10: Cummins | T10: Jet | V10: Onan | W10: 8
B11: Hull Number | G11: Fuel Onboard (Est) | J11: (Gal) | K11: # of Cylinders | Q11: =IF($Q$10=1,T8,IF($Q$10=2,T9,IF($Q$10=3,T10,IF($Q$10=4,T11,IF($Q$10=5,T12,IF($Q$10=6,T13,IF($Q$10=7,T14,IF($Q$10=8,T15,"")))))))) ->  | R11: 4 | S11: Mercury | T11: Outboard | V11: Quicksilver | W11: Other
B12: Lic Number | G12: Fuel Type | I12: =Q15 -> Gas | K12: # of Engines | P12: Gen | Q12: 7 | R12: 5 | S12: Volvo | T12: Merc Alpha | V12: Westerbeke
B13: Boat Name | G13: Key Location | K13: Generator | M13: =Q13 ->  | Q13: =IF($Q$12=1,V8,IF($Q$12=2,V9,IF($Q$12=3,V10,IF($Q$12=4,V11,IF($Q$12=5,V12,IF($Q$12=6,V13,"")))))) ->  | R13: 6 | S13: Yamaha | T13: Merc Bravo | V13: Other
P14: Fuel | Q14: 1 | R14: 7 | S14: Yanmar | T14: Volvo SX | V14: n/a
B15: SERVICE ESTIMATES | Q15: =IF($Q$14=1,U8,IF($Q$14=2,U9,"")) -> Gas | R15: 8 | S15: Other | T15: Volvo DP
P16: Cyl | Q16: 3 | R16: 9 | T16: Other I/O
B17: 1. HAULOUT (Per Ft LOA) | G17: QTY | H17: RATE | I17: PRICE | M17: JOB SUB-TOTAL | N17: =SUM(I18:I24) -> 0 | Q17: =IF($Q$16=1,W8,IF($Q$16=2,W9,IF($Q$16=3,W10,IF($Q$16=2,W11,"")))) -> 8
C18: FALSE | D18: Forklift | F18: Up to 22' | G18: =IF(AND($I$8>0, $I$8<23,C18=TRUE),$I$8,0) -> 0 | H18: $7.00 | I18: =G18*H18 -> 0
C19: FALSE | D19: Hydraulic Trailer | F19: 23' - 29' | G19: =IF(AND($I$8>22, $I$8<30,C19=TRUE),$I$8,0) -> 0 | H19: $8.00 | I19: 0
C21: FALSE | D21: Marine Travelift | F21: 30' - 39' | G21: =IF(AND($I$8>29, $I$8<40,C21=TRUE),$I$8,0) -> 0 | H21: $12.00 | I21: 0
C22: FALSE | D22: Marine Travelift | F22: 40' - 49' | G22: =IF(AND($I$8>39, $I$8<50,C22=TRUE),$I$8,0) -> 0 | H22: $16.00 | I22: 0
C23: FALSE | D23: Marine Travelift | F23: 50' - 60' | G23: =IF(AND($I$8>49, $I$8<61,C23=TRUE),$I$8,0) -> 0 | H23: $18.00 | I23: 0
C24: FALSE | D24: Blocking | F24: All | G24: =SUM(G18:G23) -> 0 | H24: $2.50 | I24: 0
B26: 2. BOTTOM WASHING (Per Ft LOA) | G26: QTY | H26: RATE | I26: PRICE | M26: JOB SUB-TOTAL | N26: =SUM(I27:I28) -> 0
C27: FALSE | D27: Painted Bottom - Steam Only | G27: =IF(AND($I$8>0, $I$8<61,C27=TRUE),$I$8,0) -> 0 | H27: $5.75 | I27: =G27*H27 -> 0
C28: FALSE | D28: Gelcoat Bottom - Chemical | G28: =IF(AND($I$8>0, $I$8<61,C28=TRUE),$I$8,0) -> 0 | H28: $10.00 | I28: =G28*H28 -> 0
B30: 3. SHRINK WRAP (Per Sq Ft) | G30: QTY | H30: RATE | I30: PRICE | M30: JOB SUB-TOTAL | N30: =SUM(I31:I34) -> 0
C31: FALSE | D31: Any Size Boat - LOA x Beam | G31: =IF(AND($I$8>0, $I$8<61,C31=TRUE),$I$8*$I$9,0) -> 0 | H31: $2.15 | I31: =G31*H31 -> 0
C32: FALSE | D32: Supply & Install Access Door | G32: =IF(AND($I$8>0, $I$8<61,C32=TRUE,C31=TRUE),1,0) -> 0 | H32: $60.00 | I32: =G32*H32 -> 0
C33: FALSE | D33: Surcharge for Flybridge | G33: =IF(AND($I$8>0, $I$8<61,C33=TRUE,C31=TRUE),1,0) -> 0 | H33: $120.00 | I33: =G33*H33 -> 0
C34: FALSE | D34: No Damp Dehumidifier (Ea.) | G34: 1.0 | H34: $8.95 | I34: =IF(AND($I$8>0, $I$8<61,C34=TRUE),G34*H34,0) -> 0
B36: 4. LAND STORAGE (Per Ft LOA) | G36: QTY | H36: RATE | I36: PRICE | M36: JOB SUB-TOTAL | N36: =SUM(I37:I42) -> 0
C37: FALSE | D37: Storage to May 31 | F37: Up to 25' | G37: =IF(AND($I$8>0, $I$8<26,C37=TRUE),$I$8,0) -> 0 | H37: $27.50 | I37: =G37*H37 -> 0
C38: FALSE | D38: Storage to May 31 | F38: 26' - 29' | G38: =IF(AND($I$8>25, $I$8<30,C38=TRUE),$I$8,0) -> 0 | H38: $30.25 | I38: 0
C39: FALSE | D39: Storage to May 31 | F39: 30' - 34' | G39: =IF(AND($I$8>29, $I$8<35,C39=TRUE),$I$8,0) -> 0 | H39: $33.00 | I39: 0
C40: FALSE | D40: Storage to May 31 | F40: 35' & Up | G40: =IF(AND($I$8>34,C40=TRUE),$I$8,0) -> 0 | H40: $38.50 | I40: 0
C41: FALSE | D41: PWC / Dinghy Storage | F41: All | G41: =IF(C41=TRUE,1,0) -> 0 | H41: $275.00 | I41: 0
C42: FALSE | D42: Drive Lock (Mandatory for I/O's) | G42: =IF(AND($I$8>0,Q10>4,C42=TRUE),$M$12,0) -> 0 | H42: $60.00 | I42: 0
Q43: Universal Parts | U43: Fuel Filters | AD43: Gear Oil | AF43: Engine Winterize Parts Summary | AU43: Generator Winterize Parts
B44: 5. ENGINE WINTERIZE | G44: QTY | H44: RATE | I44: LABOUR | J44: PARTS | M44: JOB SUB-TOTAL | N44: =SUM(I45:I54)+SUM(J45:J54) -> 0 | Q44: Antifreeze/Gal | R44: Fuel Stab 60 Gal | S44: Diesel Cond 60 Gal | T44: Storage Seal Mix | U44: Crusader Fuel Filter | V44: Merc IB Fuel Filter | W44: Merc OB Fuel Filter | X44: Volvo Fuel Filter | Y44: Kohler Fuel Filter | Z44: Onan Fuel Filter | AA44: Quicksilver Fuel Filter | AB44: Westerbeke Fuel Filter | AC44: Yamaha Fuel Filter | AD44: Merc OB Gear Oil | AE44: Yamaha Gear Oil | AF44: Caterpillar Parts | AG44: Crusader Parts | AH44: Cummins Parts | AI44: Merc IB 4CYL Parts | AJ44: Merc IB 6CYL Parts | AK44: Merc IB 8CYL Parts | AL44: Merc OB Parts <125 | AM44: Merc OB Parts >125 | AN44: Volvo Gas 4CYL Parts | AO44: Volvo Gas 6CYL Parts | AP44: Volvo Gas 8CYL Parts | AQ44: Volvo Diesel Parts | AR44: Yamaha Parts <125 | AS44: Yamaha Parts >125 | AT44: Yanmar Parts | AU44: Fischer Panda Prts | AV44: Kohler Parts | AW44: Onan Parts | AX44: Quicksilver Parts | AY44: Westerbeke Parts
C45: FALSE | D45: Gas Engine | F45: =IF(AND($Q$14=1,$Q$8=2,Q10<>4),S9,IF(AND($Q$14=1,$Q$8=4,Q10<>4),S11,IF(AND($Q$14=1,$Q$8=5,Q10<>4),S12,IF(AND($Q$14=1,$Q$8=6,Q10<>4),S13,IF(AND($Q$14=1,$Q$8=8,Q10<>4),S15,""))))) ->  | G45: =IF(AND($Q$14=1,C45=TRUE,Q10<>4,Q10<>3),$M$12,0) -> 0 | H45: $126.00 | I45: =IF(OR($Q$8=2,$Q$8=4,$Q$8=5,$Q$8=6,$Q$8=8),(G45*H45),0) -> 0 | J45: =IF(AND($Q$14=1,$Q$8=2,C45=TRUE,Q10<>4),(AG47*G45),IF(AND($Q$14=1,$Q$8=4,C45=TRUE,Q10<>4,Q16=1),(AI47*G45),IF(AND($Q$14=1,$Q$8=4,C45=TRUE,Q10<>4,Q16=2),(AJ47*G45),IF(AND($Q$14=1,$Q$8=4,C45=TRUE,Q10<>4,Q16=3),(AK47*G45),IF(AND($Q$14=1,$Q$8=5,C45=TRUE,Q10<>4,Q16=1),(AN47*G45),IF(AND($Q$14=1,$Q$8=5,C45=TRUE,Q10<>4,Q16=2),(AO47*G45),IF(AND($Q$14=1,$Q$8=5,C45=TRUE,Q10<>4,Q16=3),(AP47*G45),0))))))) -> 0 | P45: Material
C46: FALSE | D46: Diesel Engine | F46: =IF(AND($Q$14=2,$Q$8=1),S8,IF(AND($Q$14=2,$Q$8=3),S10,IF(AND($Q$14=2,$Q$8=5),S12,IF(AND($Q$14=2,$Q$8=7),S14,IF(AND($Q$14=2,$Q$8=8),S15,""))))) ->  | G46: =IF(AND($Q$14=2,C46=TRUE,Q10<>4,Q10<>3),$M$12,0) -> 0 | H46: $150.00 | I46: =IF(OR($Q$8=1,$Q$8=3,$Q$8=5,$Q$8=7,$Q$8=8),(G46*H46),0) -> 0 | J46: =IF(AND($Q$14=2,$Q$8=1,C46=TRUE,Q10<>4),(AF47*G46),IF(AND($Q$14=2,$Q$8=3,C46=TRUE,Q10<>4),(AH47*G46),IF(AND($Q$14=2,$Q$8=5,C46=TRUE,Q10<>4),(AQ47*G46),IF(AND($Q$14=2,$Q$8=7,C46=TRUE,Q10<>4),(AT47*G46),IF(AND($Q$14=2,$Q$8=8,C46=TRUE,Q10<>4),"Quote",0))))) -> 0 | P46: P/N | Q46: 74-312G55 | R46: 710-92-8m0047922 | S46: 74-93116c | T46: SSM | U46: 35-802893Q01 | V46: 35-802893Q01 | W46: 35-8m0060041 | X46: 3847644 | Y46: 35-802893Q01 | Z46: ? | AA46: ? | AB46: ? | AC46: 6P3-Ws24A-01
C47: FALSE | D47: Generator - Gas | F47: =IF(AND($Q$14=1,$Q$12=1),V8,IF(AND($Q$14=1,$Q$12=2),V9,IF(AND($Q$14=1,$Q$12=3),V10,IF(AND($Q$14=1,$Q$12=4),V11,IF(AND($Q$14=1,$Q$12=5),V12,IF(AND($Q$14=1,$Q$12=6),V13,"")))))) ->  | G47: =IF(AND($Q$14=1,Q12<7,C47=TRUE),1,0) -> 0 | H47: $95.00 | I47: =IF(OR($Q$12=1,$Q$12=2,$Q$12=3,$Q$12=4,$Q$12=5,$Q$12=6),(G47*H47),0) -> 0 | J47: =IF(AND($Q$14=1,$Q$12=1,C47=TRUE),(AU47*G47),IF(AND($Q$14=1,$Q$12=2,C47=TRUE),(AV47*G47),IF(AND($Q$14=1,$Q$12=3,C47=TRUE),(AW47*G47),IF(AND($Q$14=1,$Q$12=4,C47=TRUE),(AX47*G47),IF(AND($Q$14=1,$Q$12=5,C47=TRUE),(AY47*G47),IF(AND($Q$14=1,$Q$12=6,C47=TRUE),"Quote",0)))))) -> 0 | P47: Price | Q47: $7.69 | R47: $14.95 | S47: $34.99 | T47: $6.50 | U47: $16.05 | V47: $16.05 | W47: $62.99 | X47: $22.33 | Y47: $16.05 | Z47: $16.05 | AA47: $16.05 | AB47: $16.05 | AC47: $18.99 | AD47: $38.22 | AE47: $48.53 | AF47: =(Q47*8)+S47 -> $96.51 | AG47: =(Q47*6)+R47+T47+U47 -> $83.64 | AH47: =(Q47*8)+S47 -> $96.51 | AI47: =(Q47*4)+R47+T47+V47 -> $68.26 | AJ47: =(Q47*5)+R47+T47+V47 -> $75.95 | AK47: =(Q47*6)+R47+T47+V47 -> $83.64 | AL47: =(Q47*2)+R47+T47+W47+AD47 -> $138.04 | AM47: =(Q47*2)+R47+T47+W47+(AD47*1.25) -> $147.60 | AN47: =(Q47*4)+R47+T47+X47 -> $74.54 | AO47: =(Q47*5)+R47+T47+X47 -> $82.23 | AP47: =(Q47*6)+R47+T47+X47 -> $89.92 | AQ47: =(Q47*8)+S47 -> $96.51 | AR47: =(Q47*2)+R47+T47+AC47+AE47 -> $104.35 | AS47: =(Q47*2)+R47+T47+AC47+(AE47*1.25) -> $116.48 | AT47: =(Q47*8)+S47 -> $96.51 | AU47: =(Q47*3)+R47+T47+Y47 -> $60.57 | AV47: =(Q47*3)+R47+T47+Y47 -> $60.57 | AW47: =(Q47*3)+R47+T47+Y47 -> $60.57 | AX47: =(Q47*3)+R47+T47+Y47 -> $60.57 | AY47: =(Q47*3)+R47+T47+Y47 -> $60.57
C48: FALSE | D48: Generator - Diesel | F48: =IF(AND($Q$14=2,$Q$12=1),V8,IF(AND($Q$14=2,$Q$12=2),V9,IF(AND($Q$14=2,$Q$12=3),V10,IF(AND($Q$14=2,$Q$12=4),V11,IF(AND($Q$14=2,$Q$12=5),V12,IF(AND($Q$14=2,$Q$12=6),V13,"")))))) ->  | G48: =IF(AND($Q$14=2,Q12<7,C48=TRUE),1,0) -> 0 | H48: $100.00 | I48: =IF(OR($Q$12=1,$Q$12=2,$Q$12=3,$Q$12=4,$Q$12=5,$Q$12=6),(G48*H48),0) -> 0 | J48: =IF(AND($Q$14=2,$Q$12=1,C48=TRUE),(AU47*G48),IF(AND($Q$14=2,$Q$12=2,C48=TRUE),(AV47*G48),IF(AND($Q$14=2,$Q$12=3,C48=TRUE),(AW47*G48),IF(AND($Q$14=2,$Q$12=4,C48=TRUE),(AX47*G48),IF(AND($Q$14=2,$Q$12=5,C48=TRUE),(AY47*G48),IF(AND($Q$14=2,$Q$12=6,C48=TRUE),"Quote",0)))))) -> 0
C49: FALSE | D49: 4-Stroke O/B <125HP | F49: =IF(AND($Q$14=1,$Q$10=4,Q8=4,M9<126),S11,IF(AND($Q$14=1,$Q$10=4,Q8=6,M9<126),S13,IF(AND($Q$14=1,$Q$10=4,Q8=8,M9<126),S15,""))) ->  | G49: =IF(AND($Q$14=1,Q10=4,M9<126,C49=TRUE),$M$12,0) -> 0 | H49: $142.50 | I49: =IF(OR($Q$8=4,$Q$8=6,$Q$8=8),(G49*H49),0) -> 0 | J49: =IF(AND($Q$14=1,$Q$8=4,C49=TRUE,Q10=4),(AL47*G49),IF(AND($Q$14=1,$Q$8=6,C49=TRUE,Q10=4),(AR47*G49),IF(AND($Q$14=1,$Q$8=8,C49=TRUE,Q10=4),"Quote",0))) -> 0
C50: FALSE | D50: 4-Stroke O/B >125HP | F50: =IF(AND($Q$14=1,$Q$10=4,Q8=4,M9>125),S11,IF(AND($Q$14=1,$Q$10=4,Q8=6,M9>125),S13,IF(AND($Q$14=1,$Q$10=4,Q8=8,M9>125),S15,""))) ->  | G50: =IF(AND($Q$14=1,Q10=4,M9>125,C50=TRUE),$M$12,0) -> 0 | H50: $142.50 | I50: =IF(OR($Q$8=4,$Q$8=6,$Q$8=8),(G50*H50),0) -> 0 | J50: =IF(AND($Q$14=1,$Q$8=4,C50=TRUE,Q10=4),(AM47*G50),IF(AND($Q$14=1,$Q$8=6,C50=TRUE,Q10=4),(AS47*G50),IF(AND($Q$14=1,$Q$8=8,C50=TRUE,Q10=4),"Quote",0))) -> 0
C51: FALSE | D51: 2-Stroke Outboard | G51: 0 | H51: Quote | I51: Quote | J51: Quote
C52: FALSE | D52: PWC - 4-Stroke | G52: =IF(AND($Q$14=1,$Q$10=3,C52=TRUE),1,0) -> 0 | H52: $142.50 | I52: =G52*H52 -> 0 | J52: =IF(AND($Q$14=1,$Q$8=4,C52=TRUE,Q10=3),(AM47*G52),IF(AND($Q$14=1,$Q$8=6,C52=TRUE,Q10=3),(AS47*G52),0)) -> 0
C53: FALSE | D53: Battery Service | G53: =IF(AND($I$8>0,C53=TRUE),$I$10,0) -> 0 | H53: $12.00 | I53: =G53*H53 -> 0 | J53: 0
C54: TRUE | D54: Shop Supplies | G54: =SUM(G45:G52) -> 0 | H54: $2.00 | I54: 0 | J54: =G54*H54 -> 0
Q56: Engine Oil Filters | X56: Generator Oil Filters | AC56: Engine Oil | AP56: Engine Oil Change Parts Summary | BH56: Generator Oil Change Parts Summary
B57: 6. ENGINE OIL CHANGE | G57: QTY | H57: RATE | I57: LABOUR | J57: PARTS | M57: JOB SUB-TOTAL | N57: =SUM(I58:I66)+SUM(J58:J66) -> 0 | P57: Material | Q57: Crusader Oil Filter | R57: Merc IB Oil Filter | S57: Merc OB Oil Filter | T57: Volvo Spin-on Filter | U57: Volvo Cart Filter | V57: Yamaha OB Filter <125 | W57: Yamaha OB Filter >125 | X57: Fischer Panda Filter | Y57: Kohler Oil Filter | Z57: Onan Oil Filter | AA57: Quicksilver Oil Filter | AB57: Westerbeke Oil Filter | AC57: Crusader Oil | AD57: Merc IB Ash Oil - 1L | AE57: Merc IB Ash Oil - 4L | AF57: Merc IB Synth - 1L | AG57: Merc IB Synth - 4L | AH57: Merc OB Syn Oil - 1L | AI57: Merc OB Syn Oil - 4L | AJ57: Volvo Ash Oil - 1L | AK57: Volvo Ash Oil - 4L | AL57: Volvo Synth Oil - 1L | AM57: Volvo Synth Oil - 4L | AN57: Yamalube - 1L | AO57: SAE30 Gen Oil | AP57: Crusader Ash Parts | AQ57: Crusader Synth Parts | AR57: Merc IB 4CYL Ash | AS57: Merc IB 6CYL Ash | AT57: Merc IB 8CYL Ash | AU57: Merc IB 4Cyl Synth | AV57: Merc IB 6 Cyl Synth | AW57: Merc I/B 8 Cyl Synth | AX57: Merc OB Parts <125 | AY57: Merc OB Parts >125 | AZ57: Volvo Gas 4CYL Ash | BA57: Volvo Gas 6CYL Ash | BB57: Volvo Gas 8CYL Ash | BC57: Volvo Gas 4CYL Syn | BD57: Volvo Gas 6CYL Syn | BE57: Volvo Gas 8CYL Syn | BF57: Yamaha Parts <125 | BG57: Yamaha Parts >125 | BH57: Fischer Panda Prts | BI57: Kohler Parts | BJ57: Onan Parts | BK57: Quicksilver Parts | BL57: Westerbeke Parts
C58: FALSE | D58: Gas Engine - Standard | F58: =IF(AND($Q$14=1,$Q$8=2,C58=TRUE,Q10<>4),S9,IF(AND($Q$14=1,$Q$8=4,C58=TRUE,Q10<>4),S11,IF(AND($Q$14=1,$Q$8=5,C58=TRUE,Q10<>4),S12,IF(AND($Q$14=1,$Q$8=6,C58=TRUE,Q10<>4),S13,IF(AND($Q$14=1,$Q$8=8,C58=TRUE,Q10<>4),S15,""))))) ->  | G58: =IF(AND($Q$14=1,$Q$8=2,C58=TRUE,Q10<>4),M12,IF(AND($Q$14=1,$Q$8=4,C58=TRUE,Q10<>4),M12,IF(AND($Q$14=1,$Q$8=5,C58=TRUE,Q10<>4),M12,IF(AND($Q$14=1,$Q$8=6,C58=TRUE,Q10<>4),M12,IF(AND($Q$14=1,$Q$8=8,C58=TRUE,Q10<>4),M12,0))))) -> 0 | H58: $105.00 | I58: =G58*H58 -> 0 | J58: =IF(AND($Q$14=1,$Q$8=2,C58=TRUE,Q10<>4),AP60,IF(AND($Q$14=1,$Q$8=4,C58=TRUE,Q10<>4,Q16=1),AR60,IF(AND($Q$14=1,$Q$8=4,C58=TRUE,Q10<>4,Q16=2),AS60,IF(AND($Q$14=1,$Q$8=4,C58=TRUE,Q10<>4,Q16=3),AT60,IF(AND($Q$14=1,$Q$8=5,C58=TRUE,Q10<>4,Q16=1),AZ60,IF(AND($Q$14=1,$Q$8=5,C58=TRUE,Q10<>4,Q16=2),BA60,IF(AND($Q$14=1,$Q$8=5,C58=TRUE,Q10<>4,Q16=3),BB60,0)))))))*G58 -> 0
C59: FALSE | D59: Gas Engine - Synthetic* | F59: =IF(AND($Q$14=1,$Q$8=2,C59=TRUE,Q10<>4),S9,IF(AND($Q$14=1,$Q$8=4,C59=TRUE,Q10<>4),S11,IF(AND($Q$14=1,$Q$8=5,C59=TRUE,Q10<>4),S12,IF(AND($Q$14=1,$Q$8=6,C59=TRUE,Q10<>4),S13,IF(AND($Q$14=1,$Q$8=8,C59=TRUE,Q10<>4),S15,""))))) ->  | G59: =IF(AND($Q$14=1,$Q$8=2,C59=TRUE,Q10<>4),$M$12,IF(AND($Q$14=1,$Q$8=4,C59=TRUE,Q10<>4),$M$12,IF(AND($Q$14=1,$Q$8=5,C59=TRUE,Q10<>4),$M$12,IF(AND($Q$14=1,$Q$8=6,C59=TRUE,Q10<>4),$M$12,IF(AND($Q$14=1,$Q$8=8,C59=TRUE,Q10<>4),$M$12,0))))) -> 0 | H59: $105.00 | I59: 0 | J59: =IF(AND($Q$14=1,$Q$8=2,C59=TRUE,Q10<>4),AQ60,IF(AND($Q$14=1,$Q$8=4,C59=TRUE,Q10<>4,Q16=1),AU60,IF(AND($Q$14=1,$Q$8=4,C59=TRUE,Q10<>4,Q16=2),AV60,IF(AND($Q$14=1,$Q$8=4,C59=TRUE,Q10<>4,Q16=3),AW60,IF(AND($Q$14=1,$Q$8=5,C59=TRUE,Q10<>4,Q16=1),BC60,IF(AND($Q$14=1,$Q$8=5,C59=TRUE,Q10<>4,Q16=2),BD60,IF(AND($Q$14=1,$Q$8=5,C59=TRUE,9<>4,Q16=3),BE60,0)))))))*G59 -> 0 | P59: P/N | Q59: PH8A | R59: 35-866340Q03 | S59: 35-877769K01 | T59: 3850559 | U59: 8692305 | V59: OBM-01LCH-KT-04 | W59: OBM-01LCH-KT-05 | Y59: 359771 | AC59: 92-8M0078633 | AD59: 92-8M0078633 | AE59: 92-8M0078634 | AF59: 92-858055kc1 | AG59: 92-858056kc1 | AH59: 92-8M0053662 | AI59: 92-8M0078640 | AJ59: 3847302 | AK59: 3847303 | AL59: 4681794 | AM59: 21681795 | AN59: YMR-4MIDW-30-LT
C60: FALSE | D60: Diesel Engine 4 Cyl | F60: =IF(AND($Q$14=2,$Q$8=1,C60=TRUE,$Q$16=1),S8,IF(AND($Q$14=2,$Q$8=3,C60=TRUE,$Q$16=1),S10,IF(AND($Q$14=2,$Q$8=5,C60=TRUE,$Q$16=1),S12,IF(AND($Q$14=2,$Q$8=7,C60=TRUE,$Q$16=1),S14,IF(AND($Q$14=2,$Q$8=8,C60=TRUE,$Q$16=1),S15,""))))) ->  | G60: =IF(AND($Q$14=2,$Q$8=1,C60=TRUE,$Q$16=1),$M$12,IF(AND($Q$14=2,$Q$8=3,C60=TRUE,$Q$16=1),$M$12,IF(AND($Q$14=2,$Q$8=5,C60=TRUE,$Q$16=1),$M$12,IF(AND($Q$14=2,$Q$8=7,C60=TRUE,$Q$16=1),$M$12,IF(AND($Q$14=2,$Q$8=8,C60=TRUE,$Q$16=1),$M$12,0))))) -> 0 | H60: $110.00 | I60: 0 | J60: Quote | P60: Price | Q60: $8.49 | R60: $11.99 | S60: $10.99 | T60: $15.37 | U60: $17.30 | V60: $79.50 | W60: $96.30 | X60: $19.95 | Y60: $12.70 | Z60: $12.70 | AA60: $12.70 | AB60: $12.70 | AC60: $9.99 | AD60: $9.99 | AE60: $36.99 | AF60: $18.95 | AG60: $60.99 | AH60: $13.99 | AI60: $57.95 | AJ60: $10.23 | AK60: $36.96 | AL60: $15.85 | AM60: $57.71 | AN60: $10.05 | AO60: $9.99 | AP60: =Q60+(AD60*2)+AE60 -> $65.46 | AQ60: =Q60+(2*AF60)+AG60 -> $107.38 | AR60: =R60+AE60 -> $48.98 | AS60: =R60+AD60+AE60 -> $58.97 | AT60: =R60+(AD60*2)+AE60 -> $68.96 | AU60: =R60+AG60 -> $72.98 | AV60: =R60+AF60+AG60 -> $91.93 | AW60: =R60+(2*AF60)+AG60 -> $110.88 | AX60: =S60+(AH60*2)+AI60 -> $96.92 | AY60: =S60+(AH60*3)+AI60 -> $110.91 | AZ60: =T60+AK60 -> $52.33 | BA60: =U60+AJ60+AK60 -> $64.49 | BB60: =U60+(AJ60*2)+AK60 -> $74.72 | BC60: =U60+AM60 -> $75.01 | BD60: =U60+AL60+AM60 -> $90.86 | BE60: =U60+(AL60*2)+AM60 -> $106.71 | BF60: =V60+(AN60*7) -> $149.85 | BG60: =W60+(AN60*8) -> $176.70 | BH60: =X60+(AO60*3) -> $49.92 | BI60: =X60+(AO60*3) -> $49.92 | BJ60: =X60+(AO60*3) -> $49.92 | BK60: =X60+(AO60*3) -> $49.92 | BL60: =X60+(AO60*3) -> $49.92
C61: FALSE | D61: Diesel Engine 6/8 Cyl | F61: =IF(AND($Q$14=2,$Q$8=1,C61=TRUE,$Q$16>1),S8,IF(AND($Q$14=2,$Q$8=3,C61=TRUE,$Q$16>1),S10,IF(AND($Q$14=2,$Q$8=5,C61=TRUE,$Q$16>1),S12,IF(AND($Q$14=2,$Q$8=7,C61=TRUE,$Q$16>1),S14,IF(AND($Q$14=2,$Q$8=8,C61=TRUE,$Q$16>1),S15,""))))) ->  | G61: =IF(AND($Q$14=2,$Q$8=1,C61=TRUE,$Q$16>1),$M$12,IF(AND($Q$14=2,$Q$8=3,C61=TRUE,$Q$16>1),$M$12,IF(AND($Q$14=2,$Q$8=5,C61=TRUE,$Q$16>1),$M$12,IF(AND($Q$14=2,$Q$8=7,C61=TRUE,$Q$16>1),$M$12,IF(AND($Q$14=2,$Q$8=8,C61=TRUE,$Q$16>1),$M$12,0))))) -> 0 | H61: $175.00 | I61: 0 | J61: Quote
C62: FALSE | D62: Gas Generator | F62: =IF(AND($Q$14=1,$Q$12=1,C62=TRUE),V8,IF(AND($Q$14=1,$Q$12=2,C62=TRUE),V9,IF(AND($Q$14=1,$Q$12=3,C62=TRUE),V10,IF(AND($Q$14=1,$Q$12=4,C62=TRUE),V11,IF(AND($Q$14=1,$Q$12=5,C62=TRUE),V12,IF(AND($Q$14=1,$Q$12=6,C62=TRUE),V13,"")))))) ->  | G62: =IF(AND($Q$14=1,$Q$12=1,C62=TRUE),1,IF(AND($Q$14=1,$Q$12=2,C62=TRUE),1,IF(AND($Q$14=1,$Q$12=3,C62=TRUE),1,IF(AND($Q$14=1,$Q$12=4,C62=TRUE),1,IF(AND($Q$14=1,$Q$12=5,C62=TRUE),1,IF(AND($Q$14=1,$Q$12=6,C62=TRUE),1,0)))))) -> 0 | H62: $95.00 | I62: 0 | J62: =IF(AND($Q$14=1,$Q$12=1,C62=TRUE),(BH60*G62),IF(AND($Q$14=1,$Q$12=2,C62=TRUE),(BI60*G62),IF(AND($Q$14=1,$Q$12=3,C62=TRUE),(BJ60*G62),IF(AND($Q$14=1,$Q$12=4,C62=TRUE),(BK60*G62),IF(AND($Q$14=1,$Q$12=5,C62=TRUE),(BL60*G62),IF(AND($Q$14=1,$Q$12=6,C62=TRUE),"Quote",0)))))) -> 0
C63: FALSE | D63: Diesel Generator | F63: =IF(AND($Q$14=2,$Q$12=1,C63=TRUE),V8,IF(AND($Q$14=2,$Q$12=2,C63=TRUE),V9,IF(AND($Q$14=2,$Q$12=3,C63=TRUE),V10,IF(AND($Q$14=2,$Q$12=4,C63=TRUE),V11,IF(AND($Q$14=2,$Q$12=5,C63=TRUE),V12,IF(AND($Q$14=2,$Q$12=6,C63=TRUE),V13,"")))))) ->  | G63: =IF(AND($Q$14=2,$Q$12=1,C63=TRUE),1,IF(AND($Q$14=2,$Q$12=2,C63=TRUE),1,IF(AND($Q$14=2,$Q$12=3,C63=TRUE),1,IF(AND($Q$14=2,$Q$12=4,C63=TRUE),1,IF(AND($Q$14=2,$Q$12=5,C63=TRUE),1,IF(AND($Q$14=2,$Q$12=6,C63=TRUE),1,0)))))) -> 0 | H63: $120.00 | I63: 0 | J63: Quote
C64: FALSE | D64: Outboard | F64: =IF(AND($Q$14=1,$Q$8=4,C64=TRUE,$Q$10=4),S11,IF(AND($Q$14=1,$Q$8=6,C64=TRUE,$Q$10=4),S13,IF(AND($Q$14=1,$Q$8=8,C64=TRUE,$Q$10=4),S15,""))) ->  | G64: =IF(AND($Q$14=1,$Q$8=4,C64=TRUE,$Q$10=4),$M$12,IF(AND($Q$14=1,$Q$8=6,C64=TRUE,$Q$10=4),$M$12,IF(AND($Q$14=1,$Q$8=8,C64=TRUE,$Q$10=4),$M$12,0))) -> 0 | H64: $95.00 | I64: 0 | J64: =IF(AND($Q$14=1,$Q$8=4,C64=TRUE,$Q$10=4,M9<126),AX60,IF(AND($Q$14=1,$Q$8=4,C64=TRUE,$Q$10=4,M9>125),AY60,IF(AND($Q$14=1,$Q$8=6,C64=TRUE,$Q$10=4,M9<126),AR47,IF(AND($Q$14=1,$Q$8=6,C64=TRUE,$Q$10=4,M9>125),AS47,IF(AND($Q$14=1,$Q$8=8,C64=TRUE,$Q$10=4),"Quote",0))))) -> 0
C65: TRUE | D65: Shop Supplies | G65: =SUM(G58:G64) -> 0 | H65: $2.00 | I65: 0 | J65: =G65*H65 -> 0
C66: TRUE | D66: Enviro Disposal Fee | G66: =SUM(G58:G64) -> 0 | H66: $5.00 | I66: 0 | J66: =G66*H66 -> 0
Q67: Drive Oil Change Parts | U67: Drive Service Parts
B68: 7. DRIVE / TRANSMISSION SERVICE | G68: QTY | H68: RATE | I68: LABOUR | J68: PARTS | M68: JOB SUB-TOTAL | N68: =SUM(I69:I76)+SUM(J69:J76) -> 0 | Q68: Merc Alpha Oil Change | R68: Merc Bravo Oil Change | S68: Volvo SX Oil Change | T68: Volvo DP Oil Change | U68: Merc Alpha Service | V68: Merc Bravo Service | W68: Volvo SX Service | X68: Volvo DP Service
C69: FALSE | D69: Sterndrive Oil Change | F69: =IF(AND(C69=TRUE,$Q$10=5,$Q$8=4),T12,IF(AND(C69=TRUE,$Q$10=6,$Q$8=4),T13,IF(AND(C69=TRUE,$Q$10=7,$Q$8=5),T14,IF(AND(C69=TRUE,$Q$10=8,$Q$8=5),T15,IF(AND(C69=TRUE,$Q$10=9),T16,""))))) ->  | G69: =IF(AND(C69=TRUE,$Q$10=5,$Q$8=4),$M$12,IF(AND(C69=TRUE,$Q$10=6,$Q$8=4),$M$12,IF(AND(C69=TRUE,$Q$10=7,$Q$8=5),$M$12,IF(AND(C69=TRUE,$Q$10=8,$Q$8=5),$M$12,IF(AND(C69=TRUE,$Q$10=9),$M$12,0))))) -> 0 | H69: $95.00 | I69: =G69*H69 -> 0 | J69: =IF(AND(C69=TRUE,$Q$10=5,$Q$8=4),(Q71*$M$12),IF(AND(C69=TRUE,$Q$10=6,$Q$8=4),(R71*$M$12),IF(AND(C69=TRUE,$Q$10=7,$Q$8=5),(S71*$M$12),IF(AND(C69=TRUE,$Q$10=8,$Q$8=5),(T71*$M$12),IF(AND(C69=TRUE,$Q$10=9),"Quote",0))))) -> 0 | P69: Material
C70: FALSE | D70: Full Sterndrive Service | F70: =IF(AND(C70=TRUE,$Q$10=5,$Q$8=4),T12,IF(AND(C70=TRUE,$Q$10=6,$Q$8=4),T13,IF(AND(C70=TRUE,$Q$10=7,$Q$8=5),T14,IF(AND(C70=TRUE,$Q$10=8,$Q$8=5),T15,IF(AND(C70=TRUE,$Q$10=9),T16,""))))) ->  | G70: =IF(AND(C70=TRUE,$Q$10=5,$Q$8=4),$M$12,IF(AND(C70=TRUE,$Q$10=6,$Q$8=4),$M$12,IF(AND(C70=TRUE,$Q$10=7,$Q$8=5),$M$12,IF(AND(C70=TRUE,$Q$10=8,$Q$8=5),$M$12,IF(AND(C70=TRUE,$Q$10=9),$M$12,0))))) -> 0 | H70: $168.00 | I70: 0 | J70: =IF(AND(C70=TRUE,$Q$10=5,$Q$8=4),(U71*$M$12),IF(AND(C70=TRUE,$Q$10=6,$Q$8=4),(V71*$M$12),IF(AND(C70=TRUE,$Q$10=7,$Q$8=5),(W71*$M$12),IF(AND(C70=TRUE,$Q$10=8,$Q$8=5),(X71*$M$12),IF(AND(C70=TRUE,$Q$10=9),"Quote",0))))) -> 0 | P70: P/N
C71: FALSE | D71: Store Sterndrive Inside | G71: =IF(AND(Q10>4,C71=TRUE),$M$12,0) -> 0 | H71: $95.00 | I71: 0 | J71: 0 | P71: Price | Q71: $42.62 | R71: $62.52 | S71: $83.37 | T71: $83.12 | U71: $54.53 | V71: $72.79 | W71: $179.84 | X71: $178.86
C72: FALSE | D72: Prop Removal / Storage | G72: =IF(AND(Q10>3,C72=TRUE),$M$12,0) -> 0 | H72: $20.00 | I72: 0 | J72: 0
C73: FALSE | D73: IPS Service | F73: =IF(AND(C73=TRUE,$Q$10=2,$Q$8=5),T9,"") ->  | G73: =IF(AND(Q10=2,Q8=5,C73=TRUE),$M$12,0) -> 0 | H73: $199.00 | I73: 0 | J73: Quote
C74: FALSE | D74: Transmission Service | F74: =IF(AND(C74=TRUE,Q10=1),Q11,"") ->  | G74: =IF(AND(Q10=1,C74=TRUE),$M$12,0) -> 0 | H74: $105.00 | I74: 0 | J74: Quote
C75: TRUE | D75: Shop Supplies | G75: =SUM(G69:G74) -> 0 | H75: $2.00 | I75: 0 | J75: =G75*H75 -> 0
C76: TRUE | D76: Enviro Disposal Fee | G76: =SUM(G69:G74) -> 0 | H76: $5.00 | I76: 0 | J76: =G76*H76 -> 0
P77: Antifreeze - Qty / Gal | Q77: Price / Gal
B78: 8. SYSTEMS WINTERIZE | G78: QTY | H78: RATE | I78: LABOUR | J78: PARTS | M78: JOB SUB-TOTAL | N78: =SUM(I79:I91)+SUM(J79:J91) -> 0 | Q78: $7.69
C79: FALSE | D79: Fresh Water up to 24' | G79: 1.0 | H79: $45.00 | I79: =IF(AND($I$8>0,$I$8<25,C79=TRUE),G79*H79,0) -> 0 | J79: =IF(AND(I79>0,C79=TRUE),P79*G79*$Q$78,0) -> 0 | P79: 0
C80: FALSE | D80: Fresh Water 25' to 30' | G80: 1.0 | H80: $105.00 | I80: =IF(AND($I$8>24,$I$8<31,C80=TRUE),G80*H80,0) -> 0 | J80: 0 | P80: 0
C81: FALSE | D81: Fresh Water 31' to 39' | G81: 1.0 | H81: $125.00 | I81: =IF(AND($I$8>30,$I$8<40,C81=TRUE),G81*H81,0) -> 0 | J81: 0 | P81: 0
C82: FALSE | D82: Fresh Water 40' and up | G82: 1.0 | H82: $145.00 | I82: =IF(AND($I$8>39,C82=TRUE),G82*H82,0) -> 0 | J82: 0 | P82: 0
C83: FALSE | D83: Icemaker | G83: 1.0 | H83: $30.00 | I83: =IF(C83=TRUE,G83*H83,0) -> 0 | J83: 0 | P83: 0
C84: FALSE | D84: Dockside Water | G84: 1.0 | H84: $15.00 | I84: =IF(C84=TRUE,G84*H84,0) -> 0 | J84: 0 | P84: 0
C85: FALSE | D85: Washdown/Livewell | G85: 1.0 | H85: $35.00 | I85: 0 | J85: 0 | P85: 1
C86: FALSE | D86: Head | G86: 1.0 | H86: $25.00 | I86: 0 | J86: 0 | P86: 1
C87: FALSE | D87: Pumpout | G87: 1.0 | H87: $75.00 | I87: 0 | J87: 0 | P87: 0
C88: FALSE | D88: Air Cond - 1st Unit | G88: 1.0 | H88: $55.00 | I88: 0 | J88: 0 | P88: 0
C89: FALSE | D89: Air Cond - Addt'l Units | G89: 1.0 | H89: $35.00 | I89: 0 | J89: 0 | P89: 0
C90: FALSE | D90: Dishwasher | G90: 1.0 | H90: $35.00 | I90: 0 | J90: 0 | P90: 1
C91: FALSE | D91: Washing Machine | G91: 1.0 | H91: $45.00 | I91: 0 | J91: 0 | P91: 1
B93: Notes: | K93: SUB-TOTAL | N93: =N17+N26+N30+N36+N44+N57+N68+N78 -> 0
K94: OTHER | N94: 0
K95: TOTAL | N95: =N93+N94 -> 0
K96: 13% HST - R833926280 | N96: =N95*0.13 -> 0
K97: TOTAL W/TAX | N97: =SUM(N95:N96) -> 0
H101: X:
B102: Name of Person Authorizing Work | H102: Authorized Signature | M102: Date
H104: X:
B105: Name of Authorized Marina Agent | H105: Authorized Signature | M105: Date
B107: As the Boat owner or his/her authorized agent, I hereby authorize the work set forth herein and agree to the additional terms and conditions set forth on Page (3) hereof under "Frequently Asked Questions" and on Page (4) hereof under "Winter Service & Storage Agreement". I acknowledge and agree that I must provide the Marina with a valid Credit Card Authorization form prior to commencement of any work. I agree to pay the Marina in full immediately upon completion of the work described herein. I acknowledge and agree that a service charge of 2% per month (24% per annum) will be charged on all unpaid accounts.
B110: FREQUENTLY ASKED QUESTIONS
B112: 1. L.O.A. Means length overall of your boat including swim platform and bow pulpit.
B113: 2. KEYS You must leave ignition and cabin door keys, as applicable, with the marina at time of delivery. A minimum $100 surcharge will be added to your invoice if we must handle or winterize your boat without keys.
B114: 3. FUEL We recommend that you store your boat with minimal fuel in the tanks; however we must have sufficient fuel to run the boat for approx 30 minutes. If we must add fuel to winterize your boat properly you will be charged the cost of the fuel plus the additional labour required to tow and/or fill your boat with sufficient fuel.
B115: 4. SHRINKWRAP Due to insurance regulations customers are not permitted to tarp or shrink wrap their boat on marina property. Shrink wrap removal and recycling in the spring is additional and will be billed upon completion.
B116: 5. PREPARING YOUR BOAT FOR WINTERIZING To ensure your boat is winterized properly, we ask that you take certain steps before delivering it to us for service and/or storage: a) ensure cockpit carpets are clean, dry, rolled-up and stowed in the cabin or taken home; b) remove all personal items, including safety gear, particularly those that may be obstructing engine room/bilge access; c) empty all refrigerators, freezers, icemakers, defrost and leave doors open; d) remove from your boat all perishables, cleaning products or other liquids that could freeze and cause damage to your boat; e) stow or remove from the boat any excess mooring equipment other than the minimum required to tie the boat up during service. Ensuring your boat is neat, tidy and dry at time of winterizing saves time and avoids additional labour charges for the owner. Any equipment left onboard your boat for the winter is your responsibility - Crate's Lake Country Boats assumes no responsibility for items stored in customer boats.
B117: 6. ENGINE WINTERIZING Basic engine winterization includes, as applicable: a) adding fuel stabilizer/conditioner to the fuel tank(s); b) removing plugs and draining water from block / manifolds / exhaust / coolers, mufflers etc; c) reinstalling plugs, filling engine with antifreeze and fogging with storage seal mixture. Gas engine winterization includes replacement of the fuel filter. Diesel engine fuel filter service/replacement is additional and will be quoted upon request. 4-stroke outboard winterization also includes labour and material to change lower unit oil.
B118: 7. BATTERY SERVICE According to battery manufacturer recommendations, batteries are topped-up with electrolyte (as applicable), charged, load tested, disconnected and left onboard for winter. Only if a battery fails a load test will it be removed from the boat to avoid freezing - additional charges will apply.
B119: 8. BOTTOM WASHING If your hull bottom is coated with anti-fouling paint it should only require steam washing. If your hull bottom is unpainted gelcoat it will probably require a chemical application in addition to steam washing. Please only select one or the other.
B120: 9. OIL CHANGES The marina follows manufacturer's recommendations for winterizing procedures, including oil changes. Subject to availability we only use OEM parts and lubricants. If you are unsure whether ash-based oil or synthetic oil is recommended for your engine, please speak to our service staff for guidance. Oil change parts are estimated for specific make/model gas engines only as listed. All others, including diesel engines, will be quote individually by specific engine make/model.
B121: 10. FRESH WATER SYSTEMS Winterizing of fresh water systems includes water tank, pump, hot water tank, taps, showers and sumps. Components such as icemakers, washing machines, bait wells, washdown pumps, air conditioners etc. are additional as quoted herein.
B122: 11. PARTS ESTIMATES Parts quantities and prices quoted herein are estimates only and are provided as a guideline when estimating the cost to winterize your boat. All parts will be billed according to actual quantities used.
B123: 12. MANDATORY STERNDRIVE LOCKS All sterndrive powered boats stored with the Marina must be equipped with a sterndrive lock(s) unless the Owner chooses indoor drive storage; in which case a lock is not required. If your drive does not have a lock installed, we will install one for your and the cost of the lock will be added to your invoice.
B124: 13. ADDITIONAL SERVICE WORK Our service team is happy to assist you with any additional service or repair work that may be required for your boat. In order that we may work on your boat over the winter it will need to be stored it in a location that allows us ready access. If you are contemplating winter service work, please advise us of this in the fall when your boat is delivered to us for winterizing. Additional work can be requested in the Notes section of the Winterizing Worksheet or by selecting various options on our Winter Services Menu. Booking your service work in the fall ensures you receive the most competitive off-season pricing and allows us to do the work without interfering with your boating season.
B125: 14. STORAGE PERIOD The Land Storage pricing provided herein includes storage through May 31, 2018 only. If your boat and/or trailer is left with us beyond this date you will be charged monthly summer storage at the Marina's 2018 rates.
B126: 15. TRAILERS If your boat is brought to us and stored on a trailer, blocking charges will not apply, however additional handling charges will be assessed if we are required to unload/load your boat from/to the trailer to steamclean the bottom. Handling charges will be quoted separately. Please note winterizing services do not include trailer service or maintenance. It is the Owner's responsibility to ensure the trailer is in serviceable condition including tires, brakes, bearings, coupler and lights, prior to pickup. The Owner is also responsible to ensure that the Boat is securely strapped-down on the trailer with hull plug installed and all loose items, including canvas, securely stowed for transportation.
B127: 16. TAXES All applicable taxes are extra and will be added to your final winterizing Repair Order.
B128: 17. DISCLAIMER The Marina assumes no responsibility whatsoever for damage to equipment not winterized by the Marina. It is the boat owners responsibility to completely and accurately inform the Marina of all winterizing that may be required and to deliver the Boat to the Marina for service well in advance freeze-up. The Marina assumes no responsibility for pre-existing damage.
B129: WINTER SERVICE & STORAGE AGREEMENT
B130: Name | E130: =E3 -> 0 | J130: Email | K130: =K3 -> 0
B131: Address | E131: =E4 -> 0 | J131: Postal Code | K131: =K4 -> 0
B132: Home Ph | E132: =E5 -> 0 | G132: Work Ph | H132: =H5 -> 0 | J132: Cell Phone | K132: =K5 -> 0
B133: Boat Year | E133: =E8 -> 0 | G133: Make | H133: =E9 -> 0 | J133: Model | K133: =E10 -> 0
B134: Hull # | E134: =E11 -> 0 | G134: Lic # | H134: =E12 -> 0 | J134: Boat Name | K134: =E13 -> 0
B136: Where the Owner has contracted Crate's Lake Country Boats Inc. (hereinafter the "Marina") to provide winterization and/or storage services, as may be applicable, on his/her Boat, Motor, Trailer (hereinafter the "Equipment"), such services shall be detailed in the Winterizing Worksheet attached hereto as Schedule "A". No Winterizing Worksheet is valid unless accompanied by this Agreement. The Marina assumes no responsibility to prepare the Equipment for winter except as explicity authorized and directed by the Owner under this Agreement. IF THE OWNER DOES NOT REQUIRE ANY WINTERIZATION SERVICES, HE/SHE MUST INITIAL HERE (___________). By initialling here the Owner hereby releases the Marina from any obligation to winterize, service, clean, maintain or otherwise care for the Equipment and he/she agrees to indemnify and save harmless the Marina for any damage caused by lack of service or maintenance including, but not limited to, improper or inadequate winterization. This Agreement shall remain in full force and effect at all times while the Equipment is on the property of the Marina.
B138: The Owner hereby agrees to service and/or store the Equipment with the Marina under the following Terms and Conditions:
B139: 1. PAYMENT TERMS All accounts are payable in full immediately upon completion by the Marina of the winterizing services described herein. The Marina shall charge, and the Owner shall pay interest at a rate of 24% per annum or 2% per month on any unpaid balance.
B140: 2. WAIVER OF LIABILITY (a) The Owner acknowledges that the Marina does not assume any duty to care for the Equipment or to prevent loss or damage thereto while the same is under the control and direction of the Marina, or is on the Marina’s premises; and (b) Except for the gross negligence or fraud of the Marina, the Owner hereby releases the Marina from liability for any damage, expense, or loss to the Equipment however caused, by the Marina, its employees, agents or representatives, or otherwise, while the Equipment is under the control and direction of the Marina, or are on the Marina’s premises. The Owner hereby releases and discharges the Marina, its employees, agents or representatives from all actions, causes of action, claims and demands in any way related to this Agreement; and (c) The Owner hereby agrees to reimburse or indemnify the Marina for any damages caused to any property of the Marina, and for any sums required to be paid to anyone by the Marina, its agents, or representatives as the result of the use of or presence on the Marina premises of the Owner and/or the Equipment.
B141: 3. INSURANCE The Owner hereby agrees to maintain adequate insurance coverage on the Equipment while the Equipment is under the control and direction of the Marina, or on the Marina's premises.
B142: 4. CLAIM FOR LIEN The Owner acknowledges that the Marina shall have a lien against the Equipment for all unpaid sums due to the Marina under this Agreement. The Marina shall be entitled to liens pursuant to the Repair and Storage Liens Act, R.S.O. 1990, c. R-25, as amended, and any successor statute. The Marina shall be entitled to retain possession of the Equipment until payment is received by the Marina of all sums owing by the Owner or until the Equipment is disposed of in accordance with the Repair and Storage Liens Act.
B143: 5. LICENCE AGREEMENT ONLY The Owner expressly acknowledges that this Agreement shall create a licence agreement between the Marina and the Owner wherein the Owner is licenced to use the storage space and area, from time to time designated by the Marina for the storage of the Owner’s Equipment.
B144: 6. LOCATION FOR STORAGE This Agreement shall not grant to the Owner any right, title, claim or interest in or to any specific storage space or area. The Marina may determine, at its sole discretion, where the Equipment is to be stored. The Marina, at its sole discretion and without notice to the Owner, may relocate the Equipment from time to time as it may deem necessary.
B145: 7. NO DUTY TO INSPECT OR MAINTAIN (a) The Marina shall have no obligation to inspect or provide maintenance or repair for the Equipment except as authorized and directed by the Owner pursuant to this Agreement; and (b) The Marina shall have no obligation to maintain or repair the covering or shrink wrapping that has been applied to the Equipment by the Marina; and (c) The Marina shall have no obligation to notify the Owner of the necessity for any maintenance or repairs of the Equipment during the duration of this Agreement.
B146: 8. SNOW REMOVAL Except where the the Owner has authorized and instructed the Marina to shrink wrap the Equipment pursuant to this Agreement, the Marina shall have no obligation to remove snow or ice from the Equipment, nor to notify the Owner of the necessity for any such snow or ice removal. The Marina shall not be responsible for any loss, damage, cost or expense relating to the removal or non-removal of snow or ice from the Equipment.
B147: 9. AUTHORITY OF CORPORATION TO EXECUTE AGREEMENT If the Owner is a corporation: (a) The person signing this Agreement hereby acknowledges that he or she has the authority to bind the corporation; and (b) The Owner has all necessary corporate power, authority and capacity to enter into this Agreement and to perform its obligations under this Agreement; and (c) The execution and delivery of this Agreement and the consummation of the transaction contemplated under it have been duly authorized by all necessary corporate actions on the part of the Owner.
B148: 10. ENTIRE AGREEMENT This Agreement shall constitute the entire agreement between the parties and there is no representation, warranty, condition or collateral agreement affecting this Agreement other than as expressed herein. This Agreement may be amended only in writing upon written consent of the Marina and Owner.
B149: 11. SUCCESSORS This Agreement shall be binding on each of the parties hereto, their respective heirs, executors, administrators, personal representatives, successors and assigns.
B150: 12. SEVERABILITY The Owner agrees that all provisions to this Agreement are severable. If any provision is held to be invalid, it shall not affect the other provisions, which shall be given full force and effect.
B151: 13. JURISDICTION This Agreement shall be read with all changes of gender and number required by the context. This Agreement and the affairs of the parties shall be governed by the laws of the Province of Ontario and the venue for any legal dispute shall be the jurisdiction in which Marina is located.
B152: WARNING TO BOAT OWNERS
B153: YOU SHOULD NOTIFY YOUR INSURANCE COMPANY YOU HAVE SIGNED THIS AGREEMENT AS IT MAY INVALIDATE YOUR INSURANCE UNLESS YOU HAVE THE CONSENT OF THE INSURANCE COMPANY IN WRITING.
B154: I have read & clearly understand this Agreement & confirm that I have the authority to sign the Agreement. I acknowledge this date having received a copy of the Agreement.
B155: Dated at | H155: this | J155: day of | N155: , 20
B157: SIGNED, SEALED AND DELIVERED
B158: in the presence of:
B160: (Witness) | I160: (Owner(s))
B162: (Witness) | I162: (Marina)
B163: This Agreement is not valid unless signed and accepted by an authorized Officer of the Marina
